bitfinex/quotes_BTCUSD_20250616
["timestamp","ask_amount","ask_price","bid_price","bid_amount"]
[1750117762683,0.44214451,107090.0,107080.0,0.18677624]
[1750117762896,0.78214451,107090.0,107080.0,0.19611496]
[1750117763153,0.78214451,107090.0,107080.0,0.21479162]
[1750117763154,0.79148192,107090.0,107080.0,0.21479162]
[1750117763360,0.81015718,107090.0,107080.0,0.38415162]
[1750117763567,0.81949503,107090.0,107080.0,0.38415162]
[1750117763703,0.0093382,107080.0,107070.0,0.26459625]
[1750117763914,0.33214556,107080.0,107070.0,0.43383625]
[1750117764124,0.55657926,107090.0,107080.0,0.22413008]
[1750117764329,0.89806162,107090.0,107080.0,0.21479206]
[1750117764558,0.89206162,107090.0,107080.0,0.21479206]
[1750117764777,0.89206162,107090.0,107070.0,0.41515803]
[1750117764778,0.01867631,107080.0,107070.0,0.38411679]
[1750117764912,0.70690147,107080.0,107070.0,0.19711882]
[1750117765120,0.70316111,107080.0,107070.0,0.20645824]
[1750117765327,0.70316111,107080.0,107070.0,0.19711882]
[1750117765555,1.05917796,107080.0,107070.0,0.20645832]
[1750117765761,1.04983959,107080.0,107070.0,0.19711882]
[1750117765985,1.04050113,107080.0,107070.0,0.01133968]
[1750117766191,1.04650113,107080.0,107070.0,0.21681245]
[1750117766400,1.50155238,107080.0,107070.0,0.002]
[1750117766603,1.53325238,107080.0,107070.0,0.002]
[1750117766812,1.52391357,107080.0,107070.0,0.002]
[1750117767638,1.54598984,107080.0,107070.0,0.002]
[1750117768041,1.54298984,107080.0,107070.0,0.001]
[1750117768241,1.63913906,107080.0,107070.0,0.001]
[1750117768443,0.02388001,107070.0,107060.0,0.21497464]
[1750117768641,0.51974447,107070.0,107060.0,0.22431458]
[1750117768849,0.32280736,107070.0,107060.0,0.22431458]
[1750117769275,0.34148541,107070.0,107060.0,0.22431458]
[1750117769510,0.36016433,107070.0,107060.0,0.22431458]
[1750117769881,0.33214625,107070.0,107060.0,0.22431458]
[1750117770099,0.34148541,107070.0,107060.0,0.22431458]
[1750117770980,0.34948532,107070.0,107060.0,0.22431458]
[1750117771194,0.33080736,107070.0,107060.0,0.22431458]
[1750117771398,0.33080736,107070.0,107060.0,0.28911458]
[1750117771399,1.16410736,107070.0,107060.0,0.28911458]
[1750117771807,1.16910736,107070.0,107060.0,0.28911458]
[1750117772013,1.17844625,107070.0,107060.0,0.28911458]
[1750117772250,1.16910736,107070.0,107060.0,0.28911458]
[1750117773895,1.18778541,107070.0,107060.0,0.28911458]
[1750117774099,1.18778532,107070.0,107060.0,0.28911458]
[1750117774274,1.19712456,107070.0,107060.0,0.28911458]
[1750117774489,1.18778532,107070.0,107060.0,0.25591458]
[1750117774701,1.19712456,107070.0,107060.0,0.22431458]
[1750117774932,1.20646406,107070.0,107060.0,0.22431458]
[1750117775712,1.19712456,107070.0,107060.0,0.22431458]
[1750117775918,1.16910736,107070.0,107060.0,0.22431458]
[1750117776133,1.16910736,107070.0,107060.0,0.28841458]
[1750117777300,0.8463,107070.0,107060.0,0.28841458]
[1750117777507,0.5063,107070.0,107060.0,0.28841458]
[1750117777913,0.5013,107070.0,107060.0,0.28841458]
[1750117778314,0.4973,107070.0,107060.0,0.28841458]
[1750117779149,0.5023,107070.0,107060.0,0.28941458]
[1750117781557,0.82510736,107070.0,107060.0,0.45753458]
[1750117782026,0.82510736,107070.0,107060.0,0.25771458]
[1750117782249,0.85312447,107070.0,107060.0,0.22531458]
[1750117782473,0.85312447,107070.0,107060.0,0.44331458]
[1750117782688,0.85312439,107070.0,107060.0,0.44331458]
[1750117783355,0.84378523,107070.0,107060.0,0.44331458]
[1750117783586,0.85312439,107070.0,107060.0,0.44331458]
[1750117783814,0.82510736,107070.0,107060.0,0.44331458]
[1750117784028,0.5023,107070.0,107060.0,0.50951458]
[1750117784234,0.82510736,107070.0,107060.0,0.50951458]
[1750117785308,0.33180736,107070.0,107060.0,0.50951458]
[1750117786039,0.009,107070.0,107060.0,0.50951458]
[1750117786480,0.009,107070.0,107060.0,0.82307634]
[1750117787339,0.005,107070.0,107060.0,0.82307634]
[1750117787557,0.00174036,107080.0,107070.0,0.27911167]
[1750117787763,0.00174036,107080.0,107070.0,0.37535343]
[1750117788820,0.32854772,107080.0,107070.0,0.42575343]
[1750117789027,0.32680736,107080.0,107070.0,0.37635343]
[1750117789247,0.32680736,107080.0,107070.0,0.26521167]
[1750117789451,0.32680736,107080.0,107070.0,0.43425167]
[1750117789671,0.33614538,107080.0,107070.0,0.43425167]
[1750117789887,0.33614538,107080.0,107070.0,0.43533167]
[1750117789888,0.34848358,107080.0,107070.0,0.43533167]
[1750117790306,0.76414785,107080.0,107070.0,0.38593167]
[1750117790512,0.69782204,107080.0,107070.0,0.38593167]
[1750117790725,0.68848358,107080.0,107070.0,0.38593167]
[1750117790933,0.70716032,107080.0,107070.0,0.38593167]
[1750117791137,0.70716032,107080.0,107070.0,0.38581167]
[1750117791659,0.66980736,107080.0,107070.0,0.38581167]
[1750117791865,0.347,107080.0,107070.0,0.38581167]
[1750117792070,0.66980736,107080.0,107070.0,0.21681167]
[1750117792345,0.66980736,107080.0,107070.0,0.38581167]
[1750117793633,0.67914556,107080.0,107070.0,0.38581167]
[1750117793855,0.66980736,107080.0,107070.0,0.38581167]
[1750117794272,0.347,107080.0,107070.0,0.38581167]
[1750117794513,0.347,107080.0,107070.0,0.44881167]
[1750117796379,0.66980736,107080.0,107070.0,0.21681167]
[1750117796594,0.66980736,107080.0,107070.0,0.43473167]
[1750117797016,0.67914547,107080.0,107070.0,0.43473167]
[1750117797748,0.67914547,107080.0,107070.0,0.2074726]
[1750117797991,0.69782204,107080.0,107070.0,0.21681167]
[1750117798222,0.69782195,107080.0,107070.0,0.38509167]
[1750117798621,0.70716041,107080.0,107070.0,0.38509167]
[1750117798937,0.69782195,107080.0,107070.0,0.38509167]
[1750117799171,1.4552593,107080.0,107070.0,0.18879368]
[1750117799404,1.4552593,107080.0,107070.0,0.20747295]
[1750117800296,1.6234193,107080.0,107070.0,0.21681245]
[1750117800545,1.6234193,107080.0,107070.0,0.002]
[1750117800546,1.53247238,107080.0,107070.0,0.002]
[1750117800789,1.10827403,107070.0,107060.0,0.0001423]
[1750117801082,0.01454085,107050.0,107030.0,0.18684603]
[1750117801352,0.01868521,107030.0,107020.0,0.43243694]
[1750117801585,0.84354341,107040.0,107030.0,0.2148923]
[1750117801586,0.57733037,107040.0,107030.0,0.2148923]
[1750117801819,0.68149117,107040.0,107030.0,0.2148923]
[1750117802031,0.69083347,107040.0,107030.0,0.20554966]
[1750117802251,0.66280736,107040.0,107030.0,0.22423504]
[1750117802490,0.66280736,107040.0,107030.0,0.39247504]
[1750117802717,0.67223696,107040.0,107030.0,0.22423504]
[1750117802960,0.66289536,107040.0,107030.0,0.39247504]
[1750117803201,0.68157856,107040.0,107030.0,0.39247504]
[1750117803431,0.69392051,107040.0,107030.0,0.39343504]
[1750117803884,0.67523687,107040.0,107030.0,0.39343504]
[1750117804107,0.68957856,107040.0,107030.0,0.39343504]
[1750117804339,0.69892068,107040.0,107030.0,0.39343504]
[1750117804598,0.68957864,107040.0,107030.0,0.39343504]
[1750117804880,0.68023696,107040.0,107030.0,0.39343504]
[1750117805135,0.68957865,107040.0,107030.0,0.39343504]
[1750117805384,0.6989206,107040.0,107030.0,0.39343504]
[1750117805615,0.70826246,107040.0,107030.0,0.39343504]
[1750117805829,0.88576732,107040.0,107030.0,0.37474966]
[1750117806052,0.69892129,107040.0,107030.0,0.3934353]
[1750117806294,0.70826262,107040.0,107030.0,0.40277786]
[1750117806516,0.70826262,107040.0,107030.0,0.3934353]
[1750117806517,0.71760492,107040.0,107030.0,0.3934353]
[1750117806747,0.71760492,107040.0,107030.0,0.2252353]
[1750117806995,0.70826262,107040.0,107030.0,0.23457786]
[1750117807235,0.89510988,107040.0,107030.0,0.20654966]
[1750117807458,0.89510988,107040.0,107030.0,0.21589257]
[1750117807704,0.70826385,107040.0,107030.0,0.2252353]
[1750117807939,0.88576802,107040.0,107030.0,0.20654966]
[1750117808173,0.8764259,107040.0,107030.0,0.20654966]
[1750117808368,1.27679051,107040.0,107030.0,0.001]
[1750117808651,1.27679051,107040.0,107030.0,0.19720649]
[1750117808913,0.96673467,107040.0,107030.0,0.001]
[1750117809140,1.28954203,107040.0,107030.0,0.001]
[1750117809382,1.28954203,107040.0,107030.0,0.01034308]
[1750117809573,1.28954203,107040.0,107030.0,0.19720666]
[1750117809862,1.28954203,107040.0,107030.0,0.20654966]
[1750117810081,1.28954203,107040.0,107030.0,0.01034317]
[1750117810340,1.38569125,107040.0,107030.0,0.001]
[1750117810593,1.40644904,107040.0,107030.0,0.001]
[1750117811097,1.40644904,107040.0,107030.0,0.01034317]
[1750117811098,1.31029982,107040.0,107030.0,0.01034317]
[1750117811336,1.28019982,107040.0,107030.0,0.20654966]
[1750117811577,1.28019982,107040.0,107030.0,0.001]
[1750117811818,1.32494067,107040.0,107030.0,0.001]
[1750117812054,1.35724067,107040.0,107030.0,0.001]
[1750117814161,1.45338989,107040.0,107030.0,0.001]
[1750117814369,1.35724067,107040.0,107030.0,0.001]
[1750117815736,1.52452067,107040.0,107030.0,0.001]
[1750117817692,1.55258967,107040.0,107030.0,0.001]
[1750117820568,0.44773907,107040.0,107030.0,0.21589195]
[1750117820785,0.33430467,107040.0,107030.0,0.28109195]
[1750117821003,0.69298804,107040.0,107030.0,0.28109195]
[1750117821217,0.34364627,107040.0,107030.0,0.28109195]
[1750117821433,0.33430467,107040.0,107030.0,0.28109195]
[1750117821654,0.68364636,107040.0,107030.0,0.28109195]
[1750117821863,0.69298822,107040.0,107030.0,0.28109195]
[1750117822079,0.68364636,107040.0,107030.0,0.28109195]
[1750117822496,0.67430467,107040.0,107030.0,0.28109195]
[1750117822682,0.68364627,107040.0,107030.0,0.28109195]
[1750117822971,0.67430467,107040.0,107030.0,0.28109195]
[1750117823175,0.68364618,107040.0,107030.0,0.28109195]
[1750117823388,0.67430467,107040.0,107030.0,0.28109195]
[1750117823602,0.67430467,107040.0,107030.0,0.44901195]
[1750117823824,0.67089536,107040.0,107030.0,0.44901195]
[1750117824332,0.008088,107040.0,107030.0,0.44901195]
[1750117824538,0.33263572,107040.0,107030.0,0.44901195]
[1750117824753,0.33089536,107040.0,107030.0,0.44901195]
[1750117824971,0.33429676,107040.0,107030.0,0.44901195]
[1750117825203,0.67429676,107040.0,107030.0,0.28109195]
[1750117825418,1.21197573,107040.0,107030.0,0.20654939]
[1750117825642,1.04381421,107040.0,107030.0,0.21589204]
[1750117825868,1.01578758,107040.0,107030.0,0.2252346]
[1750117826082,0.69298022,107040.0,107030.0,0.2887346]
[1750117826299,0.68363836,107040.0,107030.0,0.2887346]
[1750117826736,0.67429676,107040.0,107030.0,0.2887346]
[1750117826953,0.3514894,107040.0,107030.0,0.2887346]
[1750117827166,0.68363836,107040.0,107030.0,0.27004939]
[1750117827397,0.71166411,107040.0,107030.0,0.001]
[1750117827606,1.2213175,107040.0,107030.0,0.21589212]
[1750117827832,1.2119759,107040.0,107030.0,0.21589212]
[1750117828078,1.35561412,107040.0,107030.0,0.20654939]
[1750117828290,1.35561412,107040.0,107030.0,0.20654957]
[1750117828507,1.29887589,107040.0,107030.0,0.2158923]
[1750117828713,1.29887589,107040.0,107030.0,0.21589239]
[1750117828927,1.29887589,107040.0,107030.0,0.001]
[1750117829580,1.28953403,107040.0,107030.0,0.001]
[1750117830887,1.28953403,107040.0,107030.0,0.20654931]
[1750117831105,0.68363827,107040.0,107030.0,0.27889187]
[1750117831312,0.70232199,107040.0,107030.0,0.27889187]
[1750117832244,0.71166411,107040.0,107030.0,0.27889187]
[1750117832476,1.2213182,107040.0,107030.0,0.23814931]
[1750117832725,1.21197643,107040.0,107030.0,0.19720649]
[1750117832947,1.21197643,107040.0,107030.0,0.2065494]
[1750117833411,1.21197643,107040.0,107030.0,0.21589222]
[1750117833650,0.37017304,107040.0,107030.0,0.30037743]
[1750117833881,0.68363845,107040.0,107030.0,0.30037743]
[1750117834121,0.70232234,107040.0,107030.0,0.30037743]
[1750117834364,0.71166455,107040.0,107030.0,0.30037743]
[1750117834602,0.70232217,107040.0,107030.0,0.30037743]
[1750117834838,0.71166438,107040.0,107030.0,0.30037743]
[1750117835067,0.72100668,107040.0,107030.0,0.30037743]
[1750117835303,1.22131777,107040.0,107030.0,0.28169222]
[1750117835538,1.21197617,107040.0,107030.0,0.2065494]
[1750117836266,1.2026344,107040.0,107030.0,0.2065494]
[1750117836749,1.19329236,107040.0,107030.0,0.19720666]
[1750117836994,1.19329236,107040.0,107030.0,0.21589256]
[1750117837281,1.19329236,107040.0,107030.0,0.20654974]
[1750117837507,1.18395015,107040.0,107030.0,0.001]
[1750117837742,1.28019191,107040.0,107030.0,0.01034317]
[1750117837980,1.28019191,107040.0,107030.0,0.16836]
[1750117838658,1.28019191,107040.0,107030.0,0.17770317]
[1750117838894,1.28019191,107040.0,107030.0,0.16836]
[1750117839114,1.28019191,107040.0,107030.0,0.001]
[1750117840863,1.28019191,107040.0,107030.0,0.19720657]
[1750117841113,0.96672667,107040.0,107030.0,0.20654939]
[1750117841350,1.28953403,107040.0,107030.0,0.001]
[1750117841825,1.28953403,107040.0,107030.0,0.01034308]
[1750117842265,1.28019191,107040.0,107030.0,0.001]
[1750117842689,1.28019191,107040.0,107030.0,0.01034308]
[1750117842902,1.28019191,107040.0,107030.0,0.001]
[1750117845030,1.28019191,107040.0,107030.0,0.01034317]
[1750117845717,1.28019191,107040.0,107030.0,0.01968625]
[1750117845966,1.28019191,107040.0,107030.0,0.01034317]
[1750117846201,1.28019191,107040.0,107030.0,0.001]
[1750117846444,1.46149276,107040.0,107030.0,0.001]
[1750117846670,0.97642726,107040.0,107030.0,0.001]
[1750117846890,1.54800897,107040.0,107030.0,0.001]
[1750117847109,1.51680897,107040.0,107030.0,0.001]
[1750117847337,1.54800897,107040.0,107030.0,0.001]
[1750117849811,0.34,107010.0,107000.0,0.3428231]
[1750117850095,0.6721521,107010.0,107000.0,0.36159789]
[1750117850335,0.97398132,107010.0,107000.0,0.36159789]
[1750117850560,0.97398132,107010.0,107000.0,0.32879789]
[1750117850784,0.97398132,107010.0,107000.0,0.33814367]
[1750117851002,0.99871275,107010.0,107000.0,0.32879789]
[1750117851233,0.46427598,107010.0,107000.0,0.32879789]
[1750117851459,0.78708334,107010.0,107000.0,0.38008851]
[1750117851679,0.79642826,107010.0,107000.0,0.36139797]
[1750117851901,0.98332668,107010.0,107000.0,0.31945236]
[1750117852130,0.44558624,107010.0,107000.0,0.32463429]
[1750117852366,0.78173773,107010.0,107000.0,0.38923429]
[1750117852625,0.80042704,107010.0,107000.0,0.38923429]
[1750117852847,0.80042704,107010.0,107000.0,0.38923446]
[1750117852848,0.80977257,107010.0,107000.0,0.38923446]
[1750117853062,0.80142818,107010.0,107000.0,0.38923446]
[1750117853290,0.88034892,107010.0,107000.0,0.37988911]
[1750117853511,0.97798168,107010.0,107000.0,0.33794367]
[1750117853734,0.96863711,107010.0,107000.0,0.3059435]
[1750117853977,0.79408361,107010.0,107000.0,0.29659806]
[1750117854431,1.8022855,107010.0,107000.0,0.27790657]
[1750117854663,1.27388997,107010.0,107000.0,0.30594289]
[1750117854903,1.47021805,107010.0,107000.0,0.30594289]
[1750117855386,1.19610948,107010.0,107000.0,0.36804289]
[1750117855614,1.35943544,107010.0,107000.0,0.36804289]
[1750117856084,1.38746853,107010.0,107000.0,0.36804289]
[1750117856304,1.37812396,107010.0,107000.0,0.36804289]
[1750117856543,0.8403,107010.0,107000.0,0.36804289]
[1750117857236,1.09986772,107010.0,107000.0,0.36804289]
[1750117857458,0.8403,107010.0,107000.0,0.36804289]
[1750117857910,1.35943544,107010.0,107000.0,0.36804289]
[1750117858124,1.37812396,107010.0,107000.0,0.36804289]
[1750117858342,1.39681318,107010.0,107000.0,0.36804289]
[1750117858555,1.40615801,107010.0,107000.0,0.33704298]
[1750117859270,1.39681309,107010.0,107000.0,0.37658816]
[1750117859698,1.38746844,107010.0,107000.0,0.37658816]
[1750117860167,1.36877957,107010.0,107000.0,0.37658816]
[1750117860428,1.36877966,107010.0,107000.0,0.37658816]
[1750117860630,1.37812405,107010.0,107000.0,0.37658816]
[1750117860834,1.38746853,107010.0,107000.0,0.31528816]
[1750117861056,1.39681318,107010.0,107000.0,0.31528816]
[1750117861279,1.10921194,107010.0,107000.0,0.31528816]
[1750117861527,1.38746853,107010.0,107000.0,0.37858816]
[1750117861939,0.8589887,107010.0,107000.0,0.37858816]
[1750117862142,1.37812405,107010.0,107000.0,0.37858816]
[1750117862352,1.76675845,107010.0,107000.0,0.28725227]
[1750117862573,1.74806958,107010.0,107000.0,0.09099069]
[1750117862776,1.65192036,107010.0,107000.0,0.09099069]
[1750117864059,1.66126484,107010.0,107000.0,0.28725218]
[1750117864289,1.65583134,107010.0,107000.0,0.30594306]
[1750117864505,1.65591064,107010.0,107000.0,0.31528824]
[1750117864716,1.85215389,107010.0,107000.0,0.30594306]
[1750117864938,1.84280967,107010.0,107000.0,0.29659771]
[1750117865564,1.84280967,107010.0,107000.0,0.3152885]
[1750117865779,1.65591125,107010.0,107000.0,0.32463377]
[1750117865983,1.66525617,107010.0,107000.0,0.32463377]
[1750117866204,1.65591125,107010.0,107000.0,0.32463334]
[1750117866445,1.65591125,107010.0,107000.0,0.31528816]
[1750117866876,1.64656642,107010.0,107000.0,0.32463334]
[1750117867087,1.65591134,107010.0,107000.0,0.35633334]
[1750117867301,1.65591134,107010.0,107000.0,0.37808816]
[1750117867513,0.12191184,107000.0,106990.0,0.18693151]
[1750117867734,0.38321992,107000.0,106990.0,0.20562387]
[1750117867976,0.38147956,107000.0,106990.0,0.20562387]
[1750117868191,0.12191184,107000.0,106990.0,0.20562387]
[1750117868400,0.38147956,107000.0,106990.0,0.20562387]
[1750117868608,0.12191184,107000.0,106990.0,0.20562387]
[1750117868825,0.3815675,107000.0,106990.0,0.20662387]
[1750117869034,0.3835675,107000.0,106990.0,0.20662387]
[1750117869284,0.3835675,107000.0,106990.0,0.37870387]
[1750117869498,0.3845675,107000.0,106990.0,0.20662387]
[1750117869710,0.12499978,107000.0,106990.0,0.52598563]
[1750117870596,0.12499978,107000.0,106990.0,0.58878563]
[1750117872365,0.12499978,107000.0,106990.0,0.36566563]
[1750117872862,0.3835675,107000.0,106990.0,0.58894563]
[1750117873341,0.3825675,107000.0,106990.0,0.58794563]
[1750117873569,0.3835675,107000.0,106990.0,0.58894563]
[1750117873788,0.12399978,107000.0,106990.0,0.58894563]
[1750117874015,0.3835675,107000.0,106990.0,0.58894563]
[1750117874813,0.12399978,107000.0,106990.0,0.58894563]
[1750117876619,0.3835675,107000.0,106990.0,0.36566563]
[1750117876866,0.12399978,107000.0,106990.0,0.58870563]
[1750117877096,0.3835675,107000.0,106990.0,0.58870563]
[1750117877543,0.3835675,107000.0,106990.0,0.58866563]
[1750117877988,0.3835675,107000.0,106990.0,0.58862563]
[1750117878252,0.3835675,107000.0,106990.0,0.20662387]
[1750117878492,0.39291268,107000.0,106990.0,0.20662387]
[1750117878710,0.41160356,107000.0,106990.0,0.37878387]
[1750117879183,0.40125803,107000.0,106990.0,0.37874387]
[1750117879417,0.40960364,107000.0,106990.0,0.20562387]
[1750117879667,0.41660356,107000.0,106990.0,0.20662387]
[1750117879909,0.41660356,107000.0,106990.0,0.37874387]
[1750117879910,0.40725803,107000.0,106990.0,0.37874387]
[1750117880135,0.13834487,107000.0,106990.0,0.37874387]
[1750117880357,0.39965295,107000.0,106990.0,0.37874387]
[1750117880585,0.3885675,107000.0,106990.0,0.37874387]
[1750117880815,0.3979125,107000.0,106990.0,0.37874387]
[1750117881035,0.46279764,107000.0,106990.0,0.37874387]
[1750117881259,0.45345264,107000.0,106990.0,0.37874387]
[1750117881500,0.45345264,107000.0,106990.0,0.42942387]
[1750117881722,0.46279773,107000.0,106990.0,0.42942387]
[1750117881944,0.14769005,107000.0,106990.0,0.42942387]
[1750117882364,0.455193,107000.0,106990.0,0.42942387]
[1750117882365,0.45345264,107000.0,106990.0,0.42942387]
[1750117883010,0.12899978,107000.0,106990.0,0.42942387]
[1750117883234,0.45345264,107000.0,106990.0,0.42942387]
[1750117883466,0.46279764,107000.0,106990.0,0.42942387]
[1750117883691,0.45345264,107000.0,106990.0,0.42942387]
[1750117884134,0.46279773,107000.0,106990.0,0.42942387]
[1750117884359,0.47214282,107000.0,106990.0,0.42922387]
[1750117884586,0.46279764,107000.0,106990.0,0.42922387]
[1750117884833,0.48148844,107000.0,106990.0,0.20662387]
[1750117885054,0.48148844,107000.0,106990.0,0.2066244]
[1750117885331,1.39595797,107000.0,106990.0,0.37834641]
[1750117885593,1.05281431,107000.0,106990.0,0.36900001]
[1750117885843,1.05281431,107000.0,106990.0,0.39703948]
[1750117886134,1.05281431,107000.0,106990.0,0.40638579]
[1750117886596,1.05281431,107000.0,106990.0,0.39703948]
[1750117886827,1.05281431,107000.0,106990.0,0.40638579]
[1750117887568,1.05281431,107000.0,106990.0,0.40626579]
[1750117887810,1.05281431,107000.0,106990.0,0.37822659]
[1750117888061,1.04346852,107000.0,106990.0,0.1726]
[1750117888314,1.04346852,107000.0,106990.0,0.01034666]
[1750117888549,1.36792138,107000.0,106990.0,0.01034666]
[1750117888798,0.71901566,107000.0,106990.0,0.20662659]
[1750117889044,1.04346852,107000.0,106990.0,0.20662659]
[1750117889285,1.04346852,107000.0,106990.0,0.21597308]
[1750117889504,1.04346852,107000.0,106990.0,0.20662659]
[1750117889709,1.36792138,107000.0,106990.0,0.20662659]
[1750117890219,1.36792138,107000.0,106990.0,0.001]
[1750117890651,0.71901566,107000.0,106990.0,0.001]
[1750117890870,1.46416314,107000.0,106990.0,0.001]
[1750117891952,1.13971028,107000.0,106990.0,0.19727993]
[1750117892170,1.13971028,107000.0,106990.0,0.001]
[1750117893170,1.46416314,107000.0,106990.0,0.001]
[1750117894076,1.46416314,107000.0,106990.0,0.01969324]
[1750117894283,1.46416314,107000.0,106990.0,0.20662659]
[1750117894495,1.13971028,107000.0,106990.0,0.22531948]
[1750117895251,0.49703576,107000.0,106990.0,0.2346651]
[1750117895497,0.84018002,107000.0,106990.0,0.22531905]
[1750117895723,1.20905259,107000.0,106990.0,0.19728001]
[1750117895949,1.53350545,107000.0,106990.0,0.2159729]
[1750117896178,1.53350545,107000.0,106990.0,0.20662659]
[1750117896394,1.36864396,107000.0,106990.0,0.22531895]
[1750117896616,0.98099005,107000.0,106990.0,0.22531895]
[1750117896840,1.31478844,107000.0,106990.0,0.22531895]
[1750117897067,1.32413405,107000.0,106990.0,0.22531895]
[1750117897291,1.35693387,107000.0,106990.0,0.22531895]
[1750117897549,1.32413379,107000.0,106990.0,0.22531895]
[1750117897800,1.31478826,107000.0,106990.0,0.22531895]
[1750117898459,1.32413387,107000.0,106990.0,0.22531895]
[1750117898680,1.31478826,107000.0,106990.0,0.22531895]
[1750117898909,1.32413379,107000.0,106990.0,0.22531895]
[1750117900020,1.3241337,107000.0,106990.0,0.22531895]
[1750117900482,1.00902645,107000.0,106990.0,0.22531895]
[1750117900675,1.33347931,107000.0,106990.0,0.22531895]
[1750117901128,1.52039519,107000.0,106990.0,0.001]
[1750117901383,2.14617419,107000.0,106990.0,0.001]
[1750117901619,1.98979504,107000.0,106990.0,0.001]
[1750117901857,2.16079504,107000.0,106990.0,0.001]
[1750117902079,0.20564564,106980.0,106970.0,0.00016105]
[1750117902296,0.3524945,106980.0,106970.0,0.21517353]
[1750117902928,0.54739076,106980.0,106970.0,0.21517353]
[1750117903367,0.74468904,106980.0,106970.0,0.20682573]
[1750117903585,0.73634203,106980.0,106970.0,0.20682573]
[1750117904043,0.73534203,106980.0,106970.0,0.19747767]
[1750117904232,1.0867474,106980.0,106970.0,0.18812935]
[1750117904489,1.09423197,106980.0,106970.0,0.20682608]
[1750117904708,1.09423197,106980.0,106970.0,0.21617432]
[1750117905199,1.25178059,106980.0,106970.0,0.00016105]
[1750117905417,1.42766059,106980.0,106970.0,0.00016105]
[1750117905666,1.41119458,106980.0,106970.0,0.00016105]
[1750117905902,1.41119458,106980.0,106970.0,0.18712935]
[1750117906120,1.39661373,106980.0,106970.0,0.00016105]
[1750117907713,0.87726461,106980.0,106970.0,0.00016105]
[1750117907937,1.39661373,106980.0,106970.0,0.00016105]
[1750117908150,1.36531373,106980.0,106970.0,0.205826]
[1750117908372,1.36515373,106980.0,106970.0,0.205826]
[1750117908846,0.3618315,106980.0,106970.0,0.22452186]
[1750117909106,0.3711786,106980.0,106970.0,0.22452186]
[1750117909353,0.61215913,106980.0,106970.0,0.28682186]
[1750117909593,0.01248457,106980.0,106970.0,0.28682186]
[1750117909836,0.008,106980.0,106970.0,0.45758186]
[1750117910072,0.26767456,106980.0,106970.0,0.45758186]
[1750117911459,0.26767456,106980.0,106970.0,0.55382362]
[1750117911460,0.008,106980.0,106970.0,0.55382362]
[1750117911696,0.008,106980.0,106970.0,0.81349818]
[1750117911919,0.008,106980.0,106970.0,0.64273818]
[1750117912181,0.008,106980.0,106970.0,1.34498362]
[1750117912415,0.003,106980.0,106970.0,1.34498362]
[1750117912651,0.12199978,107000.0,106990.0,0.27617229]
[1750117912882,0.12199978,107000.0,106990.0,0.44717229]
[1750117913354,0.12749985,107000.0,106990.0,0.44717229]
[1750117913562,0.12749985,107000.0,106990.0,0.49825229]
[1750117914026,0.45394393,107000.0,106990.0,0.49825229]
[1750117914710,0.45394393,107000.0,106990.0,0.27617229]
[1750117914919,0.45894393,107000.0,106990.0,0.49853229]
[1750117915822,0.13449985,107000.0,106990.0,0.49853229]
[1750117916524,0.12899978,107000.0,106990.0,0.59477405]
[1750117916747,0.12899978,107000.0,106990.0,1.11921813]
[1750117917209,0.12899978,107000.0,106990.0,0.79477405]
[1750117917434,0.12699978,107000.0,106990.0,0.79477405]
[1750117917658,0.12199978,107000.0,106990.0,0.79377405]
[1750117917885,0.12299978,107000.0,106990.0,0.79377405]
[1750117918147,0.12499978,107000.0,106990.0,0.79677405]
[1750117919243,0.12499978,107000.0,106990.0,1.12121813]
[1750117919900,0.12399978,107000.0,106990.0,1.12121813]
[1750117920127,0.12399978,107000.0,106990.0,1.14121813]
[1750117920342,0.12499978,107000.0,106990.0,1.14221813]
[1750117921285,0.12499978,107000.0,106990.0,1.56775898]
[1750117921504,0.06864809,107070.0,107060.0,0.21483173]
[1750117921725,0.42906667,107070.0,107060.0,0.38579173]
[1750117921953,0.39309217,107070.0,107060.0,0.38579173]
[1750117922146,0.75177022,107070.0,107060.0,0.38579173]
[1750117922631,0.40864809,107070.0,107060.0,0.38579173]
[1750117922857,0.00544809,107070.0,107060.0,0.38593277]
[1750117923086,0.59932872,107080.0,107070.0,0.21481167]
[1750117923320,0.97244928,107080.0,107070.0,0.21481167]
[1750117923546,1.93858871,107080.0,107070.0,0.37651269]
[1750117923852,0.4018,107080.0,107070.0,0.22415109]
[1750117924092,0.3718,107080.0,107070.0,0.22415109]
[1750117924325,0.66444408,107080.0,107070.0,0.22415109]
[1750117924577,0.66444408,107080.0,107070.0,0.22515109]
[1750117924828,0.345,107080.0,107070.0,0.22515109]
[1750117925288,0.005,107080.0,107070.0,0.22515109]
[1750117925526,0.013,107080.0,107070.0,0.22615109]
[1750117926023,0.02233802,107080.0,107070.0,0.22615109]
[1750117926235,0.013,107080.0,107070.0,0.22615109]
[1750117926910,0.3467821,107080.0,107070.0,0.22615109]
[1750117927138,0.35612074,107080.0,107070.0,0.22615109]
[1750117927382,0.93615852,107080.0,107070.0,0.002]
[1750117927602,1.38072401,107080.0,107070.0,0.002]
[1750117928034,1.06979708,107080.0,107070.0,0.19813318]
[1750117928320,1.04173908,107080.0,107070.0,0.20747251]
[1750117928560,0.3833,107080.0,107070.0,0.39787074]
[1750117928767,0.353,107080.0,107070.0,0.39787074]
[1750117928986,0.353,107080.0,107070.0,0.44835074]
[1750117928987,0.013,107080.0,107070.0,0.44835074]
[1750117930339,0.013,107080.0,107070.0,0.22615074]
[1750117930556,0.38642065,107080.0,107070.0,0.44839074]
[1750117930773,0.38642065,107080.0,107070.0,0.22615074]
[1750117930991,0.41872065,107080.0,107070.0,0.19813318]
[1750117931206,0.62417407,107080.0,107070.0,0.37927251]
[1750117931424,0.43739783,107080.0,107070.0,0.38861158]
[1750117931642,0.77739783,107080.0,107070.0,0.38861175]
[1750117931864,0.95483587,107080.0,107070.0,0.38861175]
[1750117932110,0.76805963,107080.0,107070.0,0.38861175]
[1750117932324,0.76805981,107080.0,107070.0,0.39795082]
[1750117932760,0.95483605,107080.0,107070.0,0.002]
[1750117932971,1.26994176,107080.0,107070.0,0.002]
[1750117933182,0.94549768,107080.0,107070.0,0.002]
[1750117933446,1.26994176,107080.0,107070.0,0.002]
[1750117933693,1.36618352,107080.0,107070.0,0.002]
[1750117934141,1.04173944,107080.0,107070.0,0.2074726]
[1750117934363,1.03240089,107080.0,107070.0,0.002]
[1750117934572,1.35684497,107080.0,107070.0,0.002]
[1750117935697,1.96083504,107080.0,107070.0,0.002]
[1750117936105,1.86468582,107080.0,107070.0,0.002]
[1750117937017,1.71216174,107080.0,107070.0,0.002]
[1750117937248,1.54024174,107080.0,107070.0,0.002]
[1750117937468,1.42945913,107080.0,107070.0,0.19813336]
[1750117937681,1.85014497,107080.0,107070.0,0.002]
[1750117938334,1.21579766,107080.0,107070.0,0.002]
[1750117938562,1.86468582,107080.0,107070.0,0.002]